Cogmind - Beta 9.5 @@@ ROGUE MODE // 2020.04.02 @ 14:21:20 Player: CreepyD Result: Self-destructed Performance ------------- Evolutions (1) 500 Regions Visited (3) 600 Robots Destroyed (22) 110 Value Destroyed (629) 629 Prototype IDs (2) 40 Alien Tech Used (0) 0 Bonus (0) 0 TOTAL SCORE: 1879 Bonus ------- None Cogmind --------- Core Integrity 141/400 Matter 16/300 Energy 1/100 System Corruption 3% Temperature Cool (0) Movement Core (50) Location -9/Materials Parts ------- > --- POWER (1) -------- (None) > --- PROPULSION (2) --- Cesium-ion Thruster > --- UTILITY (3) ------ Weight Redist. System Light Armor Plating > --- WEAPON (3) ------- Particle Gun Light Assault Rifle > --- INVENTORY (4) ---- (None) Peak State ------------ > --- POWER ------------ Light Deuterium Engine > --- PROPULSION ------- Cesium-ion Thruster Cesium-ion Thruster > --- UTILITY ---------- Structural Scanner Targeting Computer > --- WEAPON ----------- Grenade Launcher Grenade Launcher > --- INVENTORY -------- Cesium-ion Thruster Cesium-ion Thruster Particle Gun Particle Gun [Rating: 14] Favorites ----------- Power Ion Engine Engine Ion Engine Power Core Light Nuclear Core Propulsion Wheel Wheel Wheel Flight Unit Cesium-ion Thruster Utility Targeting Computer Device Structural Scanner Processor Targeting Computer Protection Light Armor Plating Weapon Grenade Launcher Energy Gun EM Pulse Gun Ballistic Gun Assault Rifle Launcher Grenade Launcher Build | -11 -10 -10 -9 ------- Run | Scr Mat Min Mat Slots Evolved 2 | . . . 2 Power . | . . . . Propulsion . | . . . . Utility 1 | . . . 1 Weapon 1 | . . . 1 Parts Attached 23 | 5 6 . 12 Power 4 | 1 2 . 1 Engine 3 | 1 1 . 1 Core 1 | . 1 . . Reactor . | . . . . Propulsion 6 | 2 . . 4 Treads . | . . . . Leg . | . . . . Wheel 2 | 2 . . . Hover . | . . . . Flight 4 | . . . 4 Utility 4 | . 2 . 2 Device 2 | . 1 . 1 Storage . | . . . . Processor 1 | . 1 . . Hackware . | . . . . Protection 1 | . . . 1 Artifact . | . . . . Weapon 9 | 2 2 . 5 Energy Gun 3 | 1 . . 2 Energy Cannon . | . . . . Ballistic Gun 2 | 1 . . 1 Ballistic Cannon . | . . . . Launcher 4 | . 2 . 2 Special Weapon . | . . . . Impact Weapon . | . . . . Slashing Weapon . | . . . . Piercing Weapon . | . . . . Special Melee Weapon . | . . . . Unidentified Prototypes . | . . . . Parts Lost 11 | . 1 . 10 Power 1 | . . . 1 Propulsion 4 | . . . 4 Utility 2 | . . . 2 Weapon 4 | . 1 . 3 Highest Loss Streak 7 | . 1 . 7 Average Slot Usage (%) 78 | . 83 100 68 Engine 9 | . 13 . 7 Core 2 | . . 14 2 Wheel 18 | . 28 28 4 Flight 5 | . . . 13 Device 7 | . 5 14 10 Processor 9 | . 8 14 10 Energy Gun 3 | . 3 . 3 Ballistic Gun 3 | . 5 . . Launcher 17 | . 17 28 15 Naked Turns 2 | . . . 2 Heaviest Build 15 | 9 12 12 15 Greatest Support 26 | 26 26 26 26 Greatest Overweight (x) 1 | . . . 1 Average Overweight (x) . | . . . . Largest Inventory Capacity 4 | 4 4 4 4 Average Capacity 4 | 4 4 4 4 Most Carried 4 | 4 4 4 4 Average Carried 2 | 1 2 3 3 Final Capacity 4 | 4 4 4 4 Final Carried 4 | 1 3 4 . Class Distribution -------------------- 91% | Mutant 8% | Bomber Dominant Class ---------------- Mutant | -10/Materials Mutant | -10/Mines Mutant | -9/Materials Resources | -11 -10 -10 -9 ----------- Run | Scr Mat Min Mat Matter Collected 543 | 245 181 48 69 Remotely . | . . . . Salvage Created 393 | . 247 16 130 Parts 34 | . 17 5 12 Haulers Intercepted . | . . . . Recyclers Shooed . | . . . . Parts Field Recycled . | . . . . Retrieved Matter . | . . . . Parts Self-Destructed . | . . . . Prevented . | . . . . Kills | -11 -10 -10 -9 ------- Run | Scr Mat Min Mat Combat Hostiles Destroyed 18 | . 8 3 7 Guns 5 | . 2 . 3 AOE 13 | . 6 3 4 Classes Destroyed 6 | . 2 1 3 Builder 1 | . . . 1 Mechanic 1 | . . . 1 Operator 2 | . 1 . 1 Swarmer 6 | . . 3 3 Grunt 10 | . 8 . 2 Sentry 2 | . . . 2 Best Kill Streak 4 | . 4 3 3 Combat Bots Only 4 | . 4 3 3 Max Kills in Single Turn 2 | . 2 2 2 Gunslinging . | . . . . Exploded 2 | . 2 2 1 Melee . | . . . . Uniques/NPCs Destroyed . | . . . . Combat | -11 -10 -10 -9 -------- Run | Scr Mat Min Mat Damage Taken 1037 | . 273 19 745 Core 317 | . 58 . 259 Absorbed by Shields . | . . . . Core Remaining (%) 88 | 100 . 76 . Volleys Fired 49 | . 23 2 24 Largest 3 | . 2 2 3 Hottest 90 | . 60 60 90 Shots Fired 69 | . 34 4 31 Gun 27 | . 18 . 9 Cannon . | . . . . Launcher 42 | . 16 4 22 Special . | . . . . Kinetic 12 | . 12 . . Thermal 9 | . . . 9 Explosive 42 | . 16 4 22 Electromagnetic 6 | . 6 . . Robot Hit Streak 9 | . 7 9 8 Robot Miss Streak 2 | . 1 . 2 Penetration Max . | . . . . Secondary Targets . | . . . . Shots Hit Robots 51 | . 26 3 22 Core Hits 42 | . 18 3 21 Critical Hits . | . . . . Critical Kills . | . . . . Critical Parts Destroyed . | . . . . Melee Attacks . | . . . . Impact . | . . . . Slashing . | . . . . Piercing . | . . . . Sneak Attacks . | . . . . Combat Hostiles . | . . . . Follow-up Attacks . | . . . . Damage Inflicted 1611 | . 744 187 680 Guns 252 | . 178 . 74 Cannons . | . . . . Explosions 1355 | . 566 187 602 Melee . | . . . . Ramming 4 | . . . 4 Kinetic 128 | . 128 . . Thermal 74 | . . . 74 Explosive 1355 | . 566 187 602 Electromagnetic 50 | . 50 . . Impact . | . . . . Slashing . | . . . . Piercing . | . . . . Highest Corruption 3 | . . . 3 Average Corruption 3 | . . . 3 Corruption Purged . | . . . . Effects 1 | . . . 1 Message Errors 1 | . . . 1 Overload Shots . | . . . . Overflow Damage 24 | . 5 . 19 Projectiles . | . . . . Explosions 24 | . 5 . 19 Melee . | . . . . Knockbacks . | . . . . Impact . | . . . . Kinetic . | . . . . Secondary . | . . . . Self-Inflicted Damage 44 | . . . 44 Shots 2 | . . . 2 Rammed 1 | . . . 1 Targets Rammed 1 | . . . 1 Kicked . | . . . . Crushed . | . . . . Highest Temperature 146 | . 60 12 146 Average Temperature 36 | . 29 7 43 Received Heat Transfer 312 | . 138 . 174 Siege Activations . | . . . . Robots Corrupted . | . . . . Combat Hostiles . | . . . . Parts Fried . | . . . . Impact Corruptions . | . . . . Robots Melted . | . . . . Combat Hostiles . | . . . . Parts Melted 1 | . . . 1 Heat Transferred 185 | . . . 185 Parts Sabotaged . | . . . . Parts Stolen . | . . . . Parts Stripped . | . . . . Power Chain Reactions . | . . . . Missiles Intercepted . | . . . . Alert | -11 -10 -10 -9 ------- Run | Scr Mat Min Mat Peak Influence 322 | . 275 191 322 Average Influence 143 | . 110 188 201 Maximum Alert Level 1 | . 1 . 1 Low Security (%) 68 | 100 79 100 47 Level 1 31 | . 20 . 52 Level 2 . | . . . . Level 3 . | . . . . Level 4 . | . . . . Level 5 . | . . . . High Security . | . . . . Max Security . | . . . . Squads Dispatched 4 | . 1 . 3 Investigation . | . . . . Extermination . | . . . . Reinforcement 3 | . 1 . 2 Assault 1 | . . . 1 Garrison . | . . . . Intercept . | . . . . Construction Impeded . | . . . . Haulers Reinforced . | . . . . Stealth | -11 -10 -10 -9 --------- Run | Scr Mat Min Mat Distress Signals . | . . . . Communications Jammed . | . . . . Distress Signals . | . . . . Times Spotted 44 | . 8 1 35 Peak Tracking Total 18 | . 4 . 18 Tactical Retreats 1 | . . . 1 Traps | -11 -10 -10 -9 ------- Run | Scr Mat Min Mat Traps Triggered 1 | . 1 . . Indirectly . | . . . . Trap Hack Attempts . | . . . . Triggered . | . . . . Disarmed . | . . . . Reprogrammed . | . . . . Reused . | . . . . Traps Extracted . | . . . . Installed . | . . . . Triggered . | . . . . Machines | -11 -10 -10 -9 ---------- Run | Scr Mat Min Mat Machines Disabled 5 | . 4 . 1 Max in Single Turn 2 | . 2 . 1 Machines Sabotaged . | . . . . Garrisons Compromised . | . . . . Overloaded Fab Kills . | . . . . Fab Network Shutdowns . | . . . . Hacking | -11 -10 -10 -9 --------- Run | Scr Mat Min Mat Machines Accessed 3 | . 1 . 2 Terminals 3 | . 1 . 2 Fabricators . | . . . . Repair Stations . | . . . . Recycling Units . | . . . . Scanalyzers . | . . . . Garrison Access . | . . . . Total Hacks 7 | . 2 . 5 Successful 7 | . 2 . 5 Failed . | . . . . Catastrophic . | . . . . Database Lockouts . | . . . . Manual . | . . . . Terminals 7 | . 2 . 5 Fabricators . | . . . . Repair Stations . | . . . . Recycling Units . | . . . . Scanalyzers . | . . . . Garrison Access . | . . . . Terminal Hacks 7 | . 2 . 5 Record 2 | . . . 2 Prototype ID Bank 1 | . 1 . . Emergency Access Points 1 | . . . 1 Maintenance Status 1 | . 1 . . Hauler Manifests 1 | . . . 1 Zone Layout 1 | . . . 1 Fabricator Hacks . | . . . . Repair Station Hacks . | . . . . Recycling Unit Hacks . | . . . . Scanalyzer . | . . . . Garrison Access Hacks . | . . . . Unauthorized Hacks . | . . . . Terminals . | . . . . Fabricators . | . . . . Repair Stations . | . . . . Recycling Units . | . . . . Scanalyzers . | . . . . Garrison Access . | . . . . Data Cores Recovered . | . . . . Used . | . . . . Hacking Detections 2 | . 1 . 1 Full Trace Events . | . . . . Feedback Events . | . . . . Feedback Blocked . | . . . . Robot Schematics Acquired . | . . . . Robots Built . | . . . . Matter . | . . . . Time . | . . . . Total Robot Build Rating . | . . . . Part Schematics Acquired . | . . . . Parts Built . | . . . . Matter . | . . . . Time . | . . . . Total Part Build Rating . | . . . . Parts Repaired . | . . . . Time . | . . . . Parts Recycled . | . . . . Recycled Matter . | . . . . Retrieved Matter . | . . . . Retrieved Components . | . . . . Parts Scanalyzed . | . . . . Part Schematics Acquired . | . . . . Parts Damaged . | . . . . Bothacking | -11 -10 -10 -9 ------------ Run | Scr Mat Min Mat Used RIF Installer . | . . . . Robots Hacked . | . . . . Non-combat . | . . . . Combat . | . . . . Robot Hacks Applied . | . . . . Relay Couplers Released . | . . . . Robots Rewired . | . . . . Allies Hacked . | . . . . Hacks Repelled . | . . . . Allies | -11 -10 -10 -9 -------- Run | Scr Mat Min Mat Total Allies . | . . . . Largest Group . | . . . . Highest-Rated Group . | . . . . Highest-Rated Ally . | . . . . Total Orders . | . . . . Ally Attacks . | . . . . Total Damage . | . . . . Kills . | . . . . Allies Corrupted . | . . . . Allies Melted . | . . . . Intel | -11 -10 -10 -9 ------- Run | Scr Mat Min Mat Robot Analysis Total . | . . . . Derelict Logs Recovered . | . . . . Drone Launches . | . . . . Drone Recoveries . | . . . . Exploration | -11 -10 -10 -9 ------------- Run | Scr Mat Min Mat Turns Passed 595 | 36 298 25 236 Spaces Moved 545 | 32 224 20 269 Core 34 | 9 . . 25 Treads . | . . . . Legs . | . . . . Wheels 319 | 23 224 20 52 Hover . | . . . . Flight 192 | . . . 192 Fastest Speed 37 | 50 90 90 37 Average Speed 69 | 78 90 90 50 Slowest Speed 120 | 90 90 90 120 Overloaded Moves . | . . . . Propulsion Burnouts . | . . . . Robots Hopped 5 | . . . 5 Cave-ins Triggered . | . . . . Exploration Rate (%) 23 | 3 43 18 30 Regions Visited 3 Branch Regions 1 Pre-discovered Areas . | . . . . Known Exits Taken . | . . . . Unknown Exits Taken 3 | 1 1 1 . Scrap Searched 1 | . . 1 . Spaces Dug . | . . . . Terrain Destroyed 179 | . 65 21 93 Melee . | . . . . Projectile . | . . . . AOE 179 | . 65 21 93 Actions | -11 -10 -10 -9 --------- Run | Scr Mat Min Mat Total 690 | 42 288 22 338 Wait 38 | . 22 . 16 Move 535 | 31 223 19 262 Hop 2 | . . . 2 Pick Up 28 | 6 9 1 12 Fast Attach . | . . . . Attach 21 | 5 5 . 11 Detach 2 | . 1 . 1 Swap 2 | . 1 . 1 Drop 12 | . 4 . 8 Fire 49 | . 23 2 24 Melee . | . . . . Ram 1 | . . . 1 Kick . | . . . . Crush . | . . . . Escape Stasis . | . . . . Rewire . | . . . . Trap . | . . . . Miscellaneous . | . . . . Route ------- -11/Scrapyard -10/Materials (discovered 2 exits: *Mat / [*Min]) -10/Mines -9/Materials (discovered 1 exit: [*Min]) History --------- Turn | Location | Event 20 | -11/Scrapyard | Discovered new exit (range 15) 37 | -11/Scrapyard | Entered Materials 206 | -10/Materials | Discovered new exit (range 3) 297 | -10/Materials | Discovered new exit (range 13) 303 | -10/Materials | Build established: Mutant 335 | -10/Materials | Entered Mines 352 | -10/Mines | Met a Derelict testing a Signal Generator 354 | -10/Mines | Found Signal Generator 355 | -10/Mines | Discovered new exit (range 6) 360 | -10/Mines | Entered Materials 360 | -9/Materials | Evolved 2 slots: Utility x1, Weapon x1 573 | -9/Materials | Discovered new exit (range 13) 574 | -9/Materials | Core integrity fell below 50% 596 | -9/Materials | Self-destructed Last Messages --------------- 00562_ S-10 Pest destroyed. 00562_ Lgt. Deuterium Engine destroyed. 00562_ Structural Scanner destroyed. 00562_ Acquired 15 matter. 00563_ Acquired Lgt. Assault Rifle. 00563_ Mni. Grenade Launcher destroyed. 00563_ System corrupted by crushing effect (+3). 00566_ Cesium-ion Thruster destroyed. 00567_ Slammed into G-34 Mercenary. 00568_ Acquired 17 matter. 00569_ R-06 Scavenger collects Flight Unit. 00571_ S-10 Pest destroyed. 00572_ K-01 Serf collects debris. 00572_ R-06 Scavenger collects Lgt. Ion Engine. 00573_ EXIT=FOUND 00573_ K-01 Serf collects debris. 00574_ Targeting Computer destroyed. 00580_ Acquired Particle Gun. 00582_ Acquired Lgt. Armor Plating. 00588_ VDMQ B6W0Z3T&SAG0#1 L UO>HDJ Map ----- +----------------------------------------------------+ | | | | | | | | | | | ?????????????????????????????????????????????????? | | ?????????????????????????????????????????????????? | | ?????????????????????????????????????????????????? | | ?????????????????????????????????????????????????? | | ?????????????????????????????????????????????????? | | ?????????????????????????????????????????????????? | | ?????????????????????????????????????????????????? | | ?????????????????????????????????????????????????? | | ?????????????????????????????????????????????????? | | ??????????????# + """ #???????????????????????? | | ??????????????# # """ #???????????????????????? | | ??????????????# ########???????????????????????? | | ??????????????# ########???????????????????????? | | ??????????????# # ##??????????????????????? | | ??????????????# # + ??????????????????????? | | ??????????????# # ##??????????????????????? | | ??????????????# + #???????????????????????? | | ??????????????# # #???????????????????????? | | ??????????????# # #???????????????????????? | | ?????????????## ################???????????????? | | ?????????????# # @ s s #???????????????? | | ????########## # "" """ """s#???????????????? | | ????# # # ""Ss""" """ +???????????????? | | ????# * = ""# # "" """s""" #???????????????? | | ????# ! ] T"# # t #???????????????? | | ????# ! ""## #### g #???????????????? | | ##### ## #??##+####g#######??#????????????? | | # """ ## #???# ##### ??????????? | | # """ ## #???# m #?????????? | | #! """ ## #???# [| #?????????? | | # # * = ## #???# [[| #?????????? | | # #####/##### #???# | ##### #?????????? | | #?# % #???# #?????#+##??????????? | | ### ##### #???????????????????? | | #???????????????????? | | ## %[ #???????????????????? | | ## = T #???????????????????? | | ####### #???????????????????? | | ??????# =! #???????????????????? | | ??????# =! #???????????????????? | | ??########### """ =% ###???????????????????? | | ??# ##### """ #?????????????????????? | | ??# """ #?????????????????????? | | ??# #?????????????????????? | | ??# #?????????????????????? | +----------------------------------------------------+ Best States ------------- Heat Dissipation 28 Energy Generation 14 Energy Capacity 250 Matter Stores 300 Matter Capacity 300 Sight Range 16 Terrain Scan Density 10 Additional Mass Support 6 Armor Coverage 150 Evasion (%) 62 Targeting Accuracy 5 Item Schematics ----------------- None Robot Schematics ------------------ None Fabricated ------------ Nothing Alien Tech Used ----------------- None Achievements -------------- Cya! Challenges ------------ None Game ------ Seed MatterCoordinationInsulator Manual? 0 Play Time 00:23:39 Cumulative 5.2 hours Start 2020.04.02 @ 14:00:10 End 2020.04.02 @ 14:21:20 Sessions 1 Manual Loads 0 Difficulty Rogue Special Mode None Game No. 6 Rogue 6 Adventurer 0 Explorer 0 Win Type - Total 0 Types 0/0/0/0/0/0/0 Lore% 2 Gallery% 11 Achievement% 7 Wizard Run 0 Options --------- ASCII 0 Keyboard 0 Movement Numpad Keybinds 0 Fullscreen 0 Font 20/SmallcapsGlow Map View 76x50 Tactical HUD 1 Map Filters NONE Filters NONE Steam X RUN: 189fca92-35b1-4d80-81bb-743656623356